Cogmind - Beta 10.2 @@@ ROGUE MODE // 2021.08.28 @ 07:58:22 Player: Chloroform Result: Destroyed by S-27 Virus with Autogun Performance ------------- Evolutions (3) 1500 Regions Visited (8) 1600 Robots Destroyed (66) 330 Value Destroyed (2369) 2369 Prototype IDs (4) 80 Alien Tech Used (0) 0 Bonus (503) 503 TOTAL SCORE: 6382 Bonus ------- High Alert Combat Kills 79 Follower Combat Kills 143 Aligned with FarCom 300 Friendly Fire -19 Cogmind --------- Core Integrity 0/700 Matter 290/300 Energy 150/170 System Corruption 0% Temperature Cool (0) Movement Walking (120) Location -7/Lower Caves Parts ------- > --- POWER (2) -------- Micro Fission Core > --- PROPULSION (5) --- Aluminum Leg Aluminum Leg > --- UTILITY (4) ------ Small Storage Unit Improved Melee Analysis Suite Makeshift Armor Plating Makeshift Armor Plating > --- WEAPON (2) ------- Longsword +1 > --- INVENTORY (6) ---- Micro Nuclear Core Microactuators Makeshift Hammer Peak State ------------ > --- POWER ------------ Light Deuterium Engine Improved Deuterium Engine > --- PROPULSION ------- Aluminum Leg Improved Titanium Leg Gravmag System Gravmag System Gravmag System > --- UTILITY ---------- High-capacity Storage Unit Advanced Weight Redist. System Improved Melee Analysis Suite Microactuators > --- WEAPON ----------- Advanced Assault Cannon Longsword +1 > --- INVENTORY -------- Micro Nuclear Core Light Angular Momentum Engine Small Storage Unit Hacking Suite Advanced Assault Cannon Advanced Assault Cannon Advanced Assault Cannon Heavy Flail [Rating: 50] Favorites ----------- Power Ion Engine Engine Ion Engine Power Core Light Nuclear Core Propulsion Aluminum Leg Treads Light Treads Leg Aluminum Leg Hover Unit Gravmag System Flight Unit Flight Unit Utility Small Storage Unit Device Advanced Weight Redist. System Storage Small Storage Unit Processor Improved Melee Analysis Suite Protection Makeshift Armor Plating Weapon Longsword +1 Energy Gun EM Pulse Gun Ballistic Gun Assault Rifle Ballistic Cannon Advanced Assault Cannon Launcher Grenade Launcher Special Weapon Mining Laser Impact Weapon Makeshift Hammer Slashing Weapon Longsword +1 Build | -11 -10 -10 -10 -9 -8 -7 -7 -7 ------- Run | Scr Mat Min Exi Min Mat Fac Low Low Slots Evolved 6 | . . . . . 4 2 . . Power 1 | . . . . . 1 . . . Propulsion 3 | . . . . . 1 2 . . Utility 2 | . . . . . 2 . . . Weapon . | . . . . . . . . . Parts Attached 88 | 6 22 . 1 . 14 21 18 6 Power 19 | 1 3 . . . 3 7 4 1 Engine 13 | 1 3 . . . 3 3 2 1 Core 6 | . . . . . . 4 2 . Reactor . | . . . . . . . . . Propulsion 30 | 2 7 . . . 4 6 9 2 Treads 2 | . 2 . . . . . . . Leg 21 | 2 5 . . . 1 5 6 2 Wheel . | . . . . . . . . . Hover 3 | . . . . . . . 3 . Flight 4 | . . . . . 3 1 . . Utility 25 | 1 7 . . . 5 6 3 3 Device 5 | . . . . . 1 3 1 . Storage 10 | 1 7 . . . . 1 1 . Processor 7 | . . . . . 3 2 1 1 Hackware . | . . . . . . . . . Protection 3 | . . . . . 1 . . 2 Artifact . | . . . . . . . . . Weapon 14 | 2 5 . 1 . 2 2 2 . Energy Gun 3 | 1 2 . . . . . . . Energy Cannon . | . . . . . . . . . Ballistic Gun 2 | 1 . . . . . 1 . . Ballistic Cannon 1 | . . . . . . 1 . . Launcher 2 | . 1 . . . 1 . . . Special Weapon 1 | . 1 . . . . . . . Impact Weapon 1 | . . . . . . . 1 . Slashing Weapon 4 | . 1 . 1 . 1 . 1 . Piercing Weapon . | . . . . . . . . . Special Melee Weapon . | . . . . . . . . . Unidentified Prototypes 2 | . . . 1 . 1 . . . Parts Lost 29 | . 1 . . . . 7 13 8 Power 6 | . 1 . . . . 1 2 2 Propulsion 16 | . . . . . . 5 8 3 Utility 5 | . . . . . . 1 2 2 Weapon 2 | . . . . . . . 1 1 Highest Loss Streak 8 | . 1 . . . . 4 6 8 Average Slot Usage (%) 91 | . 98 100 100 100 86 86 85 84 Engine 10 | . 13 14 14 14 15 6 11 . Core 3 | . . . . . . 6 3 14 Leg 23 | . 27 28 28 28 19 20 19 23 Hover 1 | . . . . . . . 10 . Flight 2 | . . . . . 7 9 . . Device 7 | . . . . . 4 9 17 14 Storage 15 | . 27 28 28 28 11 7 7 7 Processor 4 | . . . . . 5 12 4 . Protection 1 | . . . . . 6 . . 7 Ballistic Gun 1 | . 7 . . . . . . . Ballistic Cannon 1 | . . . . . . 3 2 . Launcher 5 | . 5 14 14 14 6 . . . Slashing Weapon 9 | . 6 14 14 14 9 7 6 7 Naked Turns . | . . . . . . . . . Heaviest Build 59 | 11 31 18 19 19 28 59 59 33 Greatest Support 85 | 20 40 20 20 20 30 85 49 54 Greatest Overweight (x) 5 | 1 1 . . . 5 1 1 2 Average Overweight (x) . | . . . . . . . . . Largest Inventory Capacity 14 | 6 14 8 8 8 8 12 12 6 Average Capacity 7 | 5 9 8 8 8 6 8 6 6 Most Carried 12 | 6 10 8 8 8 7 12 12 6 Average Carried 7 | 4 8 8 7 8 5 8 5 5 Final Capacity 12 | 6 8 8 8 8 6 12 6 6 Final Carried 12 | 6 8 8 8 8 6 12 6 3 Class Distribution -------------------- 59% | Mutant 40% | Scavenger-Mutant Dominant Class ---------------- Mutant | -10/Materials Mutant | -10/Mines Mutant | -10/Exiles Mutant | -9/Mines Mutant | -8/Materials Scavenger-Mutant | -7/Factory Mutant | -7/Lower Caves Scavenger-Mutant | -7/Lower Caves Resources | -11 -10 -10 -10 -9 -8 -7 -7 -7 ----------- Run | Scr Mat Min Exi Min Mat Fac Low Low Matter Collected 1175 | 211 268 . 56 10 150 295 146 39 Remotely . | . . . . . . . . . Salvage Created 3010 | . 312 . . 18 307 1234 722 417 Parts 139 | . 19 . . 4 17 52 34 13 Haulers Intercepted . | . . . . . . . . . Recyclers Shooed 4 | . . . . . 1 3 . . Parts Field Recycled . | . . . . . . . . . Retrieved Matter . | . . . . . . . . . Parts Self-Destructed 28 | . . . . . . . 25 3 Prevented 9 | . . . . . . . . 9 Kills | -11 -10 -10 -10 -9 -8 -7 -7 -7 ------- Run | Scr Mat Min Exi Min Mat Fac Low Low Combat Hostiles Destroyed 54 | . 9 . . . 4 21 13 7 Melee 46 | . 3 . . . 3 20 13 7 Guns 5 | . 5 . . . . . . . Cannons 1 | . . . . . . 1 . . AOE 2 | . 1 . . . 1 . . . Classes Destroyed 11 | . 2 . . 1 4 3 1 . Worker 5 | . . . . . 4 1 . . Builder 1 | . . . . 1 . . . . Tunneler 1 | . . . . . . 1 . . Recycler 4 | . . . . . 1 3 . . Watcher 1 | . . . . . 1 . . . Swarmer 10 | . 3 . . . 2 3 . 2 Grunt 30 | . 6 . . . 1 10 10 3 Duelist 2 | . . . . . . . 2 . Sentry 8 | . . . . . 1 5 1 1 Hunter 2 | . . . . . . 1 . 1 Programmer 2 | . . . . . . 2 . . Best Kill Streak 6 | . 3 . . 1 5 6 5 4 Combat Bots Only 5 | . 3 . . . 3 5 5 4 Max Kills in Single Turn 1 | . 1 . . 1 1 1 1 1 Gunslinging . | . . . . . . . . . Exploded 1 | . 1 . . . 1 . . . Melee 1 | . 1 . . . 1 1 1 1 Uniques/NPCs Destroyed . | . . . . . . . . . Combat | -11 -10 -10 -10 -9 -8 -7 -7 -7 -------- Run | Scr Mat Min Exi Min Mat Fac Low Low Damage Taken 4102 | . 465 . . . 438 1234 1145 820 Core 861 | . 92 . . . 67 242 268 192 Absorbed by Shields . | . . . . . . . . . Core Remaining (%) 83 | 100 . . . 63 87 . . . Volleys Fired 34 | 1 19 . . . 4 10 . . Largest 2 | 1 2 . . . 1 1 . . Hottest 60 | 20 60 . . . 30 48 . . Shots Fired 48 | 1 33 . . . 4 10 . . Gun 34 | 1 33 . . . . . . . Cannon 10 | . . . . . . 10 . . Launcher 4 | . . . . . 4 . . . Special . | . . . . . . . . . Kinetic 30 | 1 19 . . . . 10 . . Thermal . | . . . . . . . . . Explosive 4 | . . . . . 4 . . . Electromagnetic 14 | . 14 . . . . . . . Robot Hit Streak 6 | 1 6 . . . 3 5 . . Robot Miss Streak 2 | . 2 . . . 1 2 . . Penetration Max . | . . . . . . . . . Secondary Targets . | . . . . . . . . . Shots Hit Robots 175 | 1 24 . . 1 19 72 39 19 Core Hits 75 | . 10 . . 1 13 26 15 10 Critical Hits 5 | . 1 . . . . 2 2 . Critical Kills 1 | . 1 . . . . . . . Critical Parts Destroyed 3 | . . . . . . 1 2 . Melee Attacks 164 | . 12 . . 1 17 67 41 26 Impact 5 | . . . . . . . . 5 Slashing 159 | . 12 . . 1 17 67 41 21 Piercing . | . . . . . . . . . Sneak Attacks 19 | . . . . 1 5 12 . 1 Combat Hostiles 4 | . . . . . . 3 . 1 Follow-up Attacks 1 | . . . . . . . . 1 Damage Inflicted 9783 | 10 487 . . 162 1728 4456 1756 1184 Guns 224 | 10 214 . . . . . . . Cannons 183 | . . . . . . 183 . . Explosions 552 | . 102 . . . 450 . . . Melee 8814 | . 162 . . 162 1278 4273 1755 1184 Ramming 10 | . 9 . . . . . 1 . Kinetic 301 | 10 108 . . . . 183 . . Thermal 277 | . 102 . . . 175 . . . Explosive 275 | . . . . . 275 . . . Electromagnetic 106 | . 106 . . . . . . . Impact 107 | . . . . . . . . 107 Slashing 8707 | . 162 . . 162 1278 4273 1755 1077 Piercing . | . . . . . . . . . Highest Corruption . | . . . . . . . . . Average Corruption . | . . . . . . . . . Corruption Purged . | . . . . . . . . . Overload Shots . | . . . . . . . . . Overflow Damage 1814 | . 23 . . . 551 921 77 242 Projectiles 25 | . . . . . . 25 . . Explosions 176 | . 23 . . . 153 . . . Melee 1613 | . . . . . 398 896 77 242 Knockbacks 3 | . . . . . . 2 . 1 Impact 1 | . . . . . . . . 1 Kinetic 2 | . . . . . . 2 . . Secondary . | . . . . . . . . . Self-Inflicted Damage 224 | . 49 . . . 175 . . . Shots 5 | . 1 . . . 4 . . . Rammed . | . . . . . . . . . Targets Rammed 1 | . . . . . . . 1 . Kicked 1 | . . . . . . . 1 . Crushed . | . . . . . . . . . Highest Temperature 49 | . 42 . . . 49 48 6 6 Average Temperature 20 | . 21 . . . 27 18 4 6 Received Heat Transfer 1125 | . 180 . . . 135 297 405 108 Siege Activations . | . . . . . . . . . Robots Corrupted . | . . . . . . . . . Combat Hostiles . | . . . . . . . . . Parts Fried . | . . . . . . . . . Impact Corruptions . | . . . . . . . . . Robots Melted . | . . . . . . . . . Combat Hostiles . | . . . . . . . . . Parts Melted . | . . . . . . . . . Heat Transferred 200 | . 100 . . . 100 . . . Parts Sabotaged . | . . . . . . . . . Parts Stolen . | . . . . . . . . . Parts Stripped . | . . . . . . . . . Power Chain Reactions 2 | . 2 . . . . . . . Missiles Intercepted . | . . . . . . . . . Alert | -11 -10 -10 -10 -9 -8 -7 -7 -7 ------- Run | Scr Mat Min Exi Min Mat Fac Low Low Peak Influence 490 | . 204 32 . 5 371 490 . . Initial 175 | . . 32 . . 1 175 . . Average 172 | . 83 32 . . 198 303 . . Maximum Alert Level 2 | . 1 . . . 1 2 . . Low Security (%) 57 | 100 88 100 . 100 40 21 . . Level 1 39 | . 11 . . . 59 71 . . Level 2 3 | . . . . . . 7 . . Level 3 . | . . . . . . . . . Level 4 . | . . . . . . . . . Level 5 . | . . . . . . . . . High Security . | . . . . . . . . . Max Security . | . . . . . . . . . Squads Dispatched 12 | . 2 . . . 1 9 . . Investigation 5 | . 2 . . . . 3 . . Extermination 3 | . . . . . . 3 . . Reinforcement 4 | . . . . . 1 3 . . Assault . | . . . . . . . . . Garrison . | . . . . . . . . . Intercept . | . . . . . . . . . Construction Impeded . | . . . . . . . . . Haulers Reinforced 1 | . . . . . . 1 . . Stealth | -11 -10 -10 -10 -9 -8 -7 -7 -7 --------- Run | Scr Mat Min Exi Min Mat Fac Low Low Distress Signals 1 | . . . . . 1 . . . Communications Jammed . | . . . . . . . . . Distress Signals . | . . . . . . . . . Times Spotted 89 | . 15 . . . 11 26 26 11 Peak Tracking Total 7 | . 7 . . . 3 5 7 7 Tactical Retreats 17 | . 2 . . . 1 2 11 1 Traps | -11 -10 -10 -10 -9 -8 -7 -7 -7 ------- Run | Scr Mat Min Exi Min Mat Fac Low Low Traps Triggered 3 | . 2 . . . . 1 . . Indirectly . | . . . . . . . . . Trap Hack Attempts . | . . . . . . . . . Triggered . | . . . . . . . . . Disarmed . | . . . . . . . . . Reprogrammed . | . . . . . . . . . Reused . | . . . . . . . . . Traps Extracted . | . . . . . . . . . Installed . | . . . . . . . . . Triggered 1 | . . . . . . . 1 . Machines | -11 -10 -10 -10 -9 -8 -7 -7 -7 ---------- Run | Scr Mat Min Exi Min Mat Fac Low Low Machines Disabled 2 | . . . . . 1 1 . . Max in Single Turn 1 | . . . . . 1 1 . . Machines Sabotaged . | . . . . . . . . . Garrisons Compromised . | . . . . . . . . . Overloaded Fab Kills . | . . . . . . . . . Fab Network Shutdowns . | . . . . . . . . . Hacking | -11 -10 -10 -10 -9 -8 -7 -7 -7 --------- Run | Scr Mat Min Exi Min Mat Fac Low Low Machines Accessed 14 | . 3 . 2 1 . 6 1 1 Terminals 8 | . 2 . . 1 . 4 . 1 Fabricators 1 | . . . . . . 1 . . Repair Stations . | . . . . . . . . . Recycling Units 1 | . 1 . . . . . . . Scanalyzers 1 | . . . . . . 1 . . Garrison Access . | . . . . . . . . . Total Hacks 53 | . 6 . 32 2 . 11 1 1 Successful 45 | . 6 . 32 2 . 3 1 1 Failed 8 | . . . . . . 8 . . Catastrophic 3 | . . . . . . 3 . . Database Lockouts . | . . . . . . . . . Manual 10 | . . . 1 . . 9 . . Terminals 14 | . 3 . . 2 . 8 . 1 Fabricators 1 | . . . . . . 1 . . Repair Stations . | . . . . . . . . . Recycling Units 3 | . 3 . . . . . . . Scanalyzers 2 | . . . . . . 2 . . Garrison Access . | . . . . . . . . . Terminal Hacks 41 | . 3 . 32 2 . 2 1 1 Record 35 | . 1 . 32 1 . . . 1 Part Schematic 1 | . . . . . . 1 . . Prototype ID Bank 1 | . . . . . . 1 . . Open Door 1 | . . . . . . . 1 . Locate Traps 1 | . 1 . . . . . . . Zone Layout 2 | . 1 . . 1 . . . . Fabricator Hacks 1 | . . . . . . 1 . . Build 1 | . . . . . . 1 . . Repair Station Hacks . | . . . . . . . . . Recycling Unit Hacks 3 | . 3 . . . . . . . Recycle Component 1 | . 1 . . . . . . . Process 2 | . 2 . . . . . . . Scanalyzer . | . . . . . . . . . Garrison Access Hacks . | . . . . . . . . . Unauthorized Hacks . | . . . . . . . . . Terminals . | . . . . . . . . . Fabricators . | . . . . . . . . . Repair Stations . | . . . . . . . . . Recycling Units . | . . . . . . . . . Scanalyzers . | . . . . . . . . . Garrison Access . | . . . . . . . . . Data Cores Recovered . | . . . . . . . . . Used . | . . . . . . . . . Hacking Detections 6 | . 2 . . . . 4 . . Full Trace Events 3 | . 1 . . . . 2 . . Feedback Events . | . . . . . . . . . Feedback Blocked . | . . . . . . . . . Robot Schematics Acquired . | . . . . . . . . . Robots Built 1 | . . . . . . 1 . . Matter 153 | . . . . . . 153 . . Time 81 | . . . . . . 81 . . Total Robot Build Rating 1 | . . . . . . 1 . . Part Schematics Acquired 1 | . . . . . . 1 . . Parts Built . | . . . . . . . . . Matter . | . . . . . . . . . Time . | . . . . . . . . . Total Part Build Rating . | . . . . . . . . . Parts Repaired . | . . . . . . . . . Time . | . . . . . . . . . Parts Recycled 1 | . 1 . . . . . . . Recycled Matter 28 | . 28 . . . . . . . Retrieved Matter . | . . . . . . . . . Retrieved Components . | . . . . . . . . . Parts Scanalyzed . | . . . . . . . . . Part Schematics Acquired . | . . . . . . . . . Parts Damaged . | . . . . . . . . . Bothacking | -11 -10 -10 -10 -9 -8 -7 -7 -7 ------------ Run | Scr Mat Min Exi Min Mat Fac Low Low Used RIF Installer . | . . . . . . . . . Robots Hacked . | . . . . . . . . . Non-combat . | . . . . . . . . . Combat . | . . . . . . . . . Robot Hacks Applied . | . . . . . . . . . Relay Couplers Released . | . . . . . . . . . Robots Rewired . | . . . . . . . . . Allies Hacked . | . . . . . . . . . Hacks Repelled . | . . . . . . . . . Allies | -11 -10 -10 -10 -9 -8 -7 -7 -7 -------- Run | Scr Mat Min Exi Min Mat Fac Low Low Total Allies 4 | . . . . 3 . 1 . . Largest Group 3 | . . . . 3 3 1 . . Highest-Rated Group 40 | . . . . 40 40 6 . . Highest-Rated Ally 16 | . . . . 16 16 6 . . Total Orders 4 | . . . . . 3 1 . . ROAM 2 | . . . . . 1 1 . . GUARD 1 | . . . . . 1 . . . EXPLORE 1 | . . . . . 1 . . . Ally Attacks 34 | . . . . . 34 . . . Total Damage 373 | . . . . . 373 . . . Kills 5 | . . . . . 5 . . . Allies Corrupted . | . . . . . . . . . Allies Melted . | . . . . . . . . . Intel | -11 -10 -10 -10 -9 -8 -7 -7 -7 ------- Run | Scr Mat Min Exi Min Mat Fac Low Low Robot Analysis Total . | . . . . . . . . . Derelict Logs Recovered 4 | . . 1 . . . . . 3 Drone Launches 1 | . . . . . 1 . . . Drone Recoveries 1 | . . . . . 1 . . . Exploration | -11 -10 -10 -10 -9 -8 -7 -7 -7 ------------- Run | Scr Mat Min Exi Min Mat Fac Low Low Turns Passed 5841 | 75 734 102 1004 562 378 1362 1043 581 Spaces Moved 5041 | 56 471 86 832 459 319 1449 931 438 Core 27 | 27 . . . . . . . . Treads 4 | . 4 . . . . . . . Legs 3465 | 29 467 86 832 459 129 520 505 438 Wheels . | . . . . . . . . . Hover 426 | . . . . . . . 426 . Flight 1119 | . . . . . 190 929 . . Fastest Speed 34 | 50 120 120 120 120 34 34 72 120 Average Speed 98 | 96 124 120 120 120 72 68 98 120 Slowest Speed 440 | 120 160 120 120 120 440 155 155 180 Overloaded Moves . | . . . . . . . . . Propulsion Burnouts . | . . . . . . . . . Robots Hopped . | . . . . . . . . . Cave-ins Triggered . | . . . . . . . . . Exploration Rate (%) 43 | 4 28 19 90 69 25 28 78 52 Regions Visited 8 Branch Regions 5 Pre-discovered Areas 3 | . . 1 1 . . . . 1 Known Exits Taken 1 | . . . . . 1 . . . Unknown Exits Taken 7 | 1 1 1 1 1 . 1 1 . Scrap Searched 6 | . . . . 1 . . 2 3 Spaces Dug . | . . . . . . . . . Terrain Destroyed 55 | . 2 . . . 53 . . . Melee . | . . . . . . . . . Projectile . | . . . . . . . . . AOE 55 | . 2 . . . 53 . . . Terrain Rammed 1 | . 1 . . . . . . . Walls Destroyed . | . . . . . . . . . Machines Disabled . | . . . . . . . . . Actions | -11 -10 -10 -10 -9 -8 -7 -7 -7 --------- Run | Scr Mat Min Exi Min Mat Fac Low Low Total 5739 | 76 562 85 840 469 450 1750 1030 477 Wait 269 | . 2 . . 10 63 161 24 9 Move 5032 | 55 470 85 831 458 318 1447 930 438 Hop . | . . . . . . . . . Pick Up 78 | 13 17 . 3 . 12 22 10 1 Fast Attach 28 | . . . . . 8 10 8 2 Attach 34 | 6 5 . 1 . 4 5 9 4 Detach 11 | . 3 . 1 . 2 5 . . Swap 26 | . 17 . . . 2 6 1 . Drop 64 | 1 16 . 4 . 20 16 6 1 Fire 34 | 1 19 . . . 4 10 . . Melee 160 | . 12 . . 1 17 67 41 22 Ram 1 | . 1 . . . . . . . Kick 1 | . . . . . . . 1 . Crush . | . . . . . . . . . Escape Stasis 1 | . . . . . . 1 . . Rewire . | . . . . . . . . . Trap . | . . . . . . . . . Miscellaneous . | . . . . . . . . . Route ------- -11/Scrapyard -10/Materials -10/Mines -10/Exiles -9/Mines -8/Materials -7/Factory -7/Lower Caves -7/Lower Caves History --------- Turn | Location | Event 22 | -11/Scrapyard | Discovered new exit (range 14) 76 | -11/Scrapyard | Entered Materials 275 | -10/Materials | Discovered new exit (range 10) 313 | -10/Materials | Build established: Mutant 810 | -10/Materials | Entered Mines 830 | -10/Mines | Learned location of Storage (-8) 904 | -10/Mines | Deemed a non-threat by the Exiles lab entrance 905 | -10/Mines | Discovered new exit (range 5) 912 | -10/Mines | Entered Exiles 941 | -10/Exiles | Met 8R-AWN 962 | -10/Exiles | Met EX-HEX 1050 | -10/Exiles | Met EX-DEC 1080 | -10/Exiles | Visited The Gauntlet 1230 | -10/Exiles | Learned location of Zion (-7) 1313 | -10/Exiles | Discovered new exit (range 14) 1665 | -10/Exiles | Met EX-BIN 1688 | -10/Exiles | Aligned with FarCom system 1689 | -10/Exiles | Given EX-Vault access code 1725 | -10/Exiles | Opened EX-Vault 1743 | -10/Exiles | Found Prototype Slashing Weapon 1747 | -10/Exiles | Found Prototype Device 1758 | -10/Exiles | Identified Longsword +1 1760 | -10/Exiles | Found Prototype Ballistic Gun 1800 | -10/Exiles | Warned to stay clear of 0b10 Research branches 1916 | -10/Exiles | Stole three prototypes: Longsword +1, Supersonic Drone Bay, AWS/Gauss 1916 | -10/Exiles | Entered Mines 1916 | -9/Mines | Discovered new exit (range 11) 1932 | -9/Mines | Assisted by bots powering up and referring to "LRC-V3" 2478 | -9/Mines | Entered Materials 2478 | -8/Materials | Accompanied by 3 allies 2478 | -8/Materials | Evolved 4 slots: Power x1, Propulsion x1, Utility x2 2577 | -8/Materials | Identified Supersonic Drone Bay 2844 | -8/Materials | Discovered new exit (range 8) 2856 | -8/Materials | Identified exit to Factory 2856 | -8/Materials | Entered Factory 2856 | -7/Factory | Evolved 2 slots: Propulsion x2 2858 | -7/Factory | FarCom data flow suspended 3043 | -7/Factory | Build established: Scavenger-Mutant 3062 | -7/Factory | Fabricated K-01 Serf? 4201 | -7/Factory | Discovered new exit (range 5) 4218 | -7/Factory | Entered Lower Caves 4249 | -7/Lower Caves | Lost 4 parts (1p3n) 4512 | -7/Lower Caves | Build established: Mutant 4525 | -7/Lower Caves | Attracted the attention of an 0b10 outpost 4548 | -7/Lower Caves | Core integrity fell below 50% 4578 | -7/Lower Caves | Lost 3 parts (1p1u1w) 4637 | -7/Lower Caves | Lost 3 parts (3n) 4922 | -7/Lower Caves | Lost 6 parts (1p4n1u) 5088 | -7/Lower Caves | Discovered new exit (range 5) 5177 | -7/Lower Caves | Build established: Scavenger-Mutant 5261 | -7/Lower Caves | Entered another Lower Caves area 5541 | -7/Lower Caves | Learned Factory terminal intel 5647 | -7/Lower Caves | Learned 8 Factory zone layouts 5666 | -7/Lower Caves | Encountered a Warlord checkpoint 5761 | -7/Lower Caves | Core integrity fell below 20% 5799 | -7/Lower Caves | Attracted the attention of an 0b10 checkpoint 5842 | -7/Lower Caves | Destroyed by S-27 Virus with Autogun Last Messages --------------- mechanism. 05820_ Self-destruct Interrupter shorts Lgt. Nuclear Core self-destruct mechanism. 05821_ Self-destruct Interrupter shorts Flak Gun self-destruct mechanism. 05821_ Destroyed VTOL Module. 05821_ Destroyed Lgt. Nuclear Core. 05822_ Adv. Weight Redist. System destroyed. 05823_ Self-destruct Interrupter shorts Aluminum Leg self-destruct mechanism. 05823_ Mak. Hammer follow-up attack on S-27 Virus. 05824_ Self-destruct Interrupter shorts Aluminum Leg self-destruct mechanism. 05825_ S-27 Virus destroyed. 05831_ Self-destruct Interrupter shorts VTOL Module self-destruct mechanism. 05833_ Carbon-fiber Leg destroyed. 05834_ Imp. Deuterium Engine destroyed. 05838_ Aluminum Leg destroyed. 05841_ Mak. Hammer destroyed. 05842_ Acquired Aluminum Leg. Map ----- +----------------------------------------------------+ | ?????????????????????????????????????????????????? | | ?????????????????????????????????????????????????? | | ?????????????????????????????????????????????????? | | ?????????????????????????????????????????????????? | | ?????????????????????????????????????????????????? | | ?????????????????????????????????????????????????? | | ?????????????????????????????????????????????????? | | ?????????????????????????????????????????????????? | | ??????????????????????? ? ???????????????????? | | ????????????????????? ?????????????????? | | ??????????????????? ????????????????? | | ?????????????????? ?????????????????? | | ??????????????????? ?????????????????? | | ???????????????????? ??????????????????? | | ???????????????????## ??????????????????? | | ???????????????????# #?????????#?????? | | ???????????????????# # #????????? ##??? | | ????????????????????# l # s#????????? ##?# ? | | ?????????????????????# # #????????? ## ?? | | ?????????????????????# #????????? ??? | | ?????????????????##### #?????????# ???? | | ?????????????????? #?????????# ????? | | ??????????? ??????# =% #?????????## #?????? | | ?????????? #### #????????## #??????? | | ?????????? $ **%#????????# ##?????? | | ??????????# @!l=########## ##????? | | ???????????# #########=%[[% ##???? | | ???????????#????????????############# #???? | | ????????????????????????????????????# ###?? | | ????????????????????????????????????## #?? | | ?????????????????????????????????????## ### | | ??????????????????????????????????????# | | ??????????????????????????????????????## | | ???????????????????????????????????????###### ### | | ????????????????????????????????????????????# #?? | | ????????????????????????????????????????????# #?? | | ????????????????????????????????????????????# #?? | | ????????????????????????????????????????????# #?? | | ???????????????????????????????????????????## #?? | | ???????????????????????????????????????????#% #?? | | ???????????????????????????????????????????# ###?? | | ???????????????????????????????????????????# #?### | | ??????????????????????????????????????######%#?# | | ??????????????????????????????????????# # ### | | ????????????????????????????????????????# % ## | | ????????????????????????????????????????#% # | | ????????????????????????????????????????## ## | | ?????????????????????????????????????????# ## | | ?????????????????????????????????????????## | | ??????????????????????????????????????????# ### | +----------------------------------------------------+ Best States ------------- Heat Dissipation 48 Energy Generation 29 Energy Capacity 400 Matter Stores 300 Matter Capacity 300 Sight Range 22 Terrain Scan Density 10 Additional Mass Support 9 Armor Coverage 200 Melee Speed Boost 20 Evasion (%) 63 Melee Accuracy 6 Recoil Reduction 2 Item Schematics ----------------- Flight Unit | -7/Factory | Hacked Robot Schematics ------------------ None Fabricated ------------ K-01 Serf | x1 | -7/Factory | Preloaded Alien Tech Used ----------------- None Achievements -------------- Deadly Force My Command Is Your Wish Serviceable Loadout What Is This Thing? Challenges ------------ None Game ------ Seed WeightCouplerCloak Manual? 0 Play Time 01:49:22 Cumulative 7.9 hours Start 2021.08.27 @ 15:53:54 End 2021.08.28 @ 07:58:22 Sessions 3 Manual Loads 0 Difficulty Rogue Special Mode None Game No. 8 Rogue 5 Adventurer 3 Explorer 0 Win Type - Total 0 Types 0/0/0/0/0/0/0/0/0 Lore% 10 Gallery% 12 Achievement% 12 Wizard Run 0 Options --------- ASCII 0 Keyboard 1 Movement Arrows Keybinds 0 Fullscreen 1 Font 18/SmallcapsGlow Map View 76x50 Tactical HUD 1 Map Filters NONE Filters NONE Steam 1 RUN: 350cc192-7515-4c94-8a0e-a7359f17486c